bitfinex-derivatives/quotes_BNBF0:USTF0_20250708
["timestamp","ask_amount","ask_price","bid_price","bid_amount"]
[1751961410398,2.2724005,660.63,659.94,1.169]
[1751961410399,1.70216274,660.47,659.94,1.169]
[1751961414203,1.70216274,660.46,659.94,1.169]
[1751961415799,1.70216274,660.47,659.94,1.169]
[1751961416305,1.70216274,660.46,659.94,1.169]
[1751961417306,1.70216274,660.45,659.94,2.87089684]
[1751961417605,1.70216274,660.45,659.95,1.70189684]
[1751961419705,1.70216274,660.43,659.96,1.70189684]
[1751961419909,1.70216274,660.43,659.97,1.70189684]
[1751961420508,1.70216274,660.43,659.98,1.70189684]
[1751961420708,1.70216274,660.42,659.98,1.70189684]
[1751961421706,1.70216274,660.43,659.98,1.70189684]
[1751961422412,1.70216274,660.42,659.98,1.70189684]
[1751961423912,1.70216274,660.43,659.97,1.70189684]
[1751961425313,1.70216274,660.43,659.98,1.007]
[1751961425711,1.70216274,660.41,660.0,1.70189684]
[1751961428015,1.70216274,660.4,659.98,1.007]
[1751961429016,1.70216274,660.41,659.98,1.007]
[1751961430716,0.41389506,660.53,659.98,1.007]
[1751961430717,1.70216274,660.42,659.98,1.007]
[1751961433714,1.70216274,660.41,659.98,1.007]
[1751961436321,1.70313732,660.41,659.98,1.007]
[1751961437721,1.70313732,660.4,659.98,1.007]
[1751961438418,3.96312572,660.4,659.98,1.007]
[1751961438620,2.2599884,660.39,659.98,1.007]
[1751961438822,1.70313732,660.37,659.98,1.007]
[1751961440421,1.70313732,660.36,659.98,1.007]
[1751961442420,1.70313732,660.37,659.98,1.007]
[1751961445227,1.70313732,660.36,659.98,1.007]
[1751961451230,1.70313732,660.37,659.98,1.007]
[1751961451633,1.70313732,660.36,659.98,1.007]
[1751961453235,0.41365133,660.47,659.98,1.007]
[1751961453236,1.70313732,660.44,659.98,1.007]
[1751961453731,1.70313732,660.45,659.98,1.007]
[1751961454331,1.70313732,660.44,659.98,1.007]
[1751961457137,1.70313732,660.45,659.98,1.007]
[1751961463138,1.70313732,660.42,659.98,1.007]
[1751961463743,1.70313732,660.41,659.98,1.007]
[1751961464245,1.70313732,660.42,659.98,1.007]
[1751961464444,1.70313732,660.43,659.98,1.007]
[1751961464845,1.70313732,660.42,659.98,1.007]
[1751961468746,1.70313732,660.43,659.98,1.007]
[1751961469040,1.70313732,660.42,659.98,1.007]
[1751961470441,1.70313732,660.42,659.8,1.70253046]
[1751961472048,1.70313732,660.42,659.81,1.70253046]
[1751961473549,1.70313732,660.42,659.82,1.194]
[1751961474048,1.70313732,660.41,659.82,2.89653046]
[1751961474348,1.70313732,660.4,659.83,1.70253046]
[1751961474648,1.70313732,660.39,659.84,1.70253046]
[1751961474844,1.70313732,660.39,659.85,1.70253046]
[1751961475648,1.70313732,660.38,659.86,1.70253046]
[1751961478145,1.70313732,660.37,659.87,1.70253046]
[1751961478547,1.70313732,660.35,659.91,1.70253046]
[1751961479445,1.70313732,660.34,659.91,1.70253046]
[1751961479649,1.70313732,660.35,659.91,1.70253046]
[1751961479847,1.70313732,660.34,659.91,1.70253046]
[1751961480745,1.70313732,660.34,659.92,1.70253046]
[1751961481946,2.95210071,660.34,659.92,1.70253046]
[1751961482145,1.70313732,660.34,659.92,1.70253046]
[1751961482851,1.70313732,660.37,659.88,1.70253046]
[1751961483250,1.70313732,660.36,659.88,1.70253046]
[1751961483651,1.70313732,660.39,659.84,1.70253046]
[1751961483850,5.6810013,661.39,659.82,2.89653046]
[1751961483851,1.70313732,660.4,659.82,2.89653046]
[1751961485250,1.70313732,660.4,659.83,1.70253046]
[1751961485750,2.95210071,660.4,659.83,1.70253046]
[1751961485955,1.70313732,660.4,659.83,1.70253046]
[1751961487154,1.70313732,660.39,659.83,1.70253046]
[1751961489155,1.70313732,660.39,659.82,1.194]
[1751961489156,1.70313732,660.39,659.84,1.70253046]
[1751961492253,1.70313732,660.38,659.84,1.70253046]
[1751961492652,1.70313732,660.38,659.85,1.70253046]
[1751961493556,1.70313732,660.37,659.87,1.70253046]
[1751961493851,1.70313732,660.33,659.92,1.70253046]
[1751961494257,1.70313732,660.33,659.93,1.70253046]
[1751961494455,1.70313732,660.32,659.93,1.70253046]
[1751961495262,1.70313732,660.32,659.94,1.70253046]
[1751961495862,1.70313732,660.33,659.92,1.70253046]
[1751961496358,1.70313732,660.32,659.93,1.70253046]
[1751961497960,1.70313732,660.32,659.94,1.70253046]
[1751961498159,1.70313732,660.31,659.94,1.70253046]
[1751961498759,1.70313732,660.36,659.87,1.70253046]
[1751961502764,1.70313732,660.35,659.86,1.70253046]
[1751961508871,1.70313732,660.31,659.92,1.70253046]
[1751961509969,1.70313732,660.31,659.93,1.70253046]
[1751961510169,1.70313732,660.32,659.91,1.70253046]
[1751961510370,1.70313732,660.36,659.84,1.70253046]
[1751961510772,1.00996155,660.35,659.84,1.70253046]
[1751961510972,1.70313732,660.15,659.82,1.194]
[1751961511568,1.70313732,660.19,659.82,1.194]
[1751961511968,1.70313732,660.18,659.82,1.194]
[1751961512175,1.70313732,660.15,659.82,1.194]
[1751961512371,1.70313732,660.17,659.82,1.194]
[1751961512770,1.70313732,660.18,659.82,1.194]
[1751961513470,1.70313732,660.2,659.82,1.194]
[1751961514375,1.70313732,660.21,659.82,1.194]
[1751961515377,1.70313732,660.22,659.82,1.194]
[1751961516388,1.70313732,660.21,659.82,1.194]
[1751961516591,1.70313732,660.22,659.82,1.194]
[1751961517491,1.70313732,660.23,659.82,1.194]
[1751961518487,1.70313732,660.24,659.82,1.194]
[1751961520490,1.70313732,660.25,659.82,1.194]
[1751961522694,1.70313732,660.26,659.82,1.194]
[1751961523590,1.70313732,660.24,659.82,1.194]
[1751961524296,1.70313732,660.25,659.82,1.194]
[1751961524495,3.95797535,660.26,659.82,1.194]
[1751961524694,2.25483803,660.25,659.82,1.194]
[1751961524894,1.70313732,660.26,659.82,1.194]
[1751961527694,1.70313732,660.26,659.52,1.70253046]
[1751961528296,1.70313732,660.26,659.53,1.70253046]
[1751961528496,1.70313732,660.26,659.52,1.70253046]
[1751961528896,1.70313732,660.29,659.51,0.26368431]
[1751961529095,1.70313732,660.3,659.51,0.26368431]
[1751961530995,1.70313732,660.3,659.52,1.375]
[1751961536008,0.26370928,660.23,659.52,1.375]
[1751961538909,0.26370928,660.23,659.53,1.70253046]
[1751961540010,0.26370928,660.23,659.57,1.70253046]
[1751961540410,0.26370928,660.23,659.56,1.70253046]
[1751961540914,0.26370928,660.23,659.57,1.70253046]
[1751961541514,0.26370928,660.23,659.56,1.70253046]
[1751961545212,0.26370928,660.23,659.53,1.70253046]
[1751961547319,0.26370928,660.23,659.51,1.96621477]
[1751961547520,0.26370928,660.23,659.54,1.327]
[1751961549919,0.26370928,660.23,659.55,1.70253046]
[1751961550119,0.26370928,660.23,659.56,1.70253046]
[1751961552523,1.70313732,660.37,659.56,1.70253046]
[1751961553319,1.70313732,660.37,659.55,1.70253046]
[1751961553724,1.70313732,660.36,659.57,1.70253046]
[1751961553919,1.70313732,660.37,659.58,1.70253046]
[1751961554625,1.70313732,660.36,659.59,1.70253046]
[1751961555926,3.95662856,660.36,659.59,1.70253046]
[1751961556223,2.25349124,660.35,659.59,1.70253046]
[1751961556426,1.24629778,660.35,659.6,1.70253046]
[1751961556623,1.70313732,660.35,659.6,1.70253046]
[1751961556822,0.41258042,660.51,659.54,1.327]
[1751961556823,1.70313732,660.36,659.61,1.70253046]
[1751961558223,1.70313732,660.36,659.54,1.327]
[1751961558224,1.70313732,660.37,659.64,1.70253046]
[1751961558428,1.70313732,660.37,659.65,1.70253046]
[1751961558624,1.70313732,660.37,659.64,1.70253046]
[1751961559530,1.70313732,660.37,659.65,1.70253046]
[1751961560029,2.71033078,660.37,659.65,1.70253046]
[1751961560325,1.70313732,660.37,659.65,1.70253046]
[1751961560527,1.70313732,660.36,659.65,1.70253046]
[1751961560829,1.70313732,660.37,659.66,1.70253046]
[1751961562229,1.70313732,660.35,659.68,1.70253046]
[1751961562430,1.70313732,660.35,659.69,1.70253046]
[1751961563426,1.70313732,660.34,659.69,1.70253046]
[1751961563626,1.70313732,660.34,659.54,1.327]
[1751961563627,1.70313732,660.35,659.7,1.70253046]
[1751961564425,1.70313732,660.35,659.71,1.70253046]
[1751961565433,1.70313732,660.34,659.71,1.70253046]
[1751961567432,1.70313732,660.33,659.72,1.70253046]
[1751961567627,1.70313732,660.34,659.72,1.70253046]
[1751961568132,1.70313732,660.33,659.72,1.70253046]
[1751961568627,1.70313732,660.3,659.77,1.70253046]
[1751961569534,1.70313732,660.29,659.78,1.70253046]
[1751961570735,1.70313732,660.29,659.79,1.70253046]
[1751961570931,1.70313732,660.29,659.78,1.70253046]
[1751961573735,1.70313732,660.31,659.75,1.70253046]
[1751961574437,1.70313732,660.33,659.72,1.70253046]
[1751961574940,1.00834072,660.35,659.64,1.70253046]
[1751961575136,1.70313732,660.43,659.64,1.70253046]
[1751961575541,1.70313732,660.43,659.63,1.70253046]
[1751961577444,1.70313732,660.44,659.63,1.70253046]
[1751961578039,1.70313732,660.43,659.63,1.70253046]
[1751961578443,1.70313732,660.44,659.63,1.70253046]
[1751961579144,1.70313732,660.44,659.62,1.70253046]
[1751961581747,1.70313732,660.45,659.62,1.70253046]
[1751961582243,1.70313732,660.45,659.63,1.642]
[1751961584245,1.70313732,660.45,659.63,3.34453046]
[1751961584449,1.70313732,660.44,659.63,3.34453046]
[1751961584748,1.70313732,660.4,659.69,1.70253046]
[1751961585249,1.70313732,660.4,659.7,1.70253046]
[1751961585449,1.70313732,660.4,659.69,1.70253046]
[1751961587049,1.70313732,660.38,659.72,1.70253046]
[1751961587650,1.70313732,660.39,659.71,1.70253046]
[1751961588650,1.70313732,660.38,659.72,1.70253046]
[1751961589049,1.70313732,660.38,659.73,1.70253046]
[1751961590550,1.70313732,660.37,659.74,1.70253046]
[1751961591549,1.70313732,660.36,659.75,1.70253046]
[1751961592953,1.70313732,660.36,659.76,1.70253046]
[1751961593454,1.70313732,660.37,659.74,1.70253046]
[1751961594754,3.4086007,660.68,659.74,1.70253046]
[1751961594755,1.70313732,660.36,659.74,1.70253046]
[1751961595353,1.70313732,660.36,659.75,1.70253046]
[1751961595550,1.70313732,660.37,659.73,1.70253046]
[1751961596149,1.70313732,660.37,659.74,1.70253046]
[1751961596453,1.70313732,660.38,659.72,1.70253046]
[1751961597552,1.70313732,660.37,659.74,1.70253046]
[1751961598549,1.70313732,660.36,659.74,1.70253046]
[1751961599453,1.70313732,660.36,659.75,1.70253046]
[1751961600255,1.70313732,660.36,658.4,7.9529503]
[1751961600751,1.248138,678.97,659.76,1.459]
[1751961600957,1.701476,660.36,659.76,1.459]
[1751961601157,1.701476,660.33,659.76,1.459]
[1751961602053,1.701476,660.36,659.76,1.459]
[1751961602455,1.7017995,660.35,659.76,1.459]
[1751961602856,1.7017995,660.36,659.76,1.459]
[1751961604455,1.7017995,660.35,659.76,1.459]
[1751961605459,1.7017995,660.34,659.76,1.459]
[1751961606056,1.7017995,660.33,659.76,1.459]
[1751961608861,1.7017995,660.32,659.76,1.459]
[1751961610760,1.7017995,660.29,659.77,1.7009]
[1751961610964,1.7017995,660.01,659.76,1.459]
[1751961612763,1.7017995,659.99,659.76,1.459]
[1751961615367,1.7017995,659.98,659.76,1.459]
[1751961617969,1.7017995,659.99,659.76,1.459]
[1751961618469,1.7017995,659.98,659.76,1.459]
[1751961618670,1.7017995,659.99,659.76,1.459]
[1751961620473,1.7017995,660.01,659.76,1.459]
[1751961621174,1.7017995,660.0,659.76,1.459]
[1751961622072,1.7017995,660.01,659.76,1.459]
[1751961622376,1.7017995,660.03,659.76,1.459]
[1751961622775,1.7040686,660.03,659.76,1.459]
[1751961624279,1.7040686,660.06,659.76,1.459]
[1751961627376,1.7040686,660.05,659.76,1.459]
[1751961628278,1.7040686,660.06,659.76,1.459]
[1751961629483,1.7040686,660.05,659.76,1.459]
[1751961629685,1.7040686,660.03,659.76,1.459]
[1751961629884,1.7040686,659.96,659.76,1.459]
[1751961630386,1.7040686,659.93,659.76,1.459]
[1751961633387,1.7040686,659.92,659.76,1.459]
[1751961633687,1.7040686,659.93,659.76,1.459]
[1751961634387,1.7040686,659.94,659.76,1.459]
[1751961634788,1.7040686,659.95,659.76,1.459]
[1751961634988,1.7040686,659.96,659.76,1.459]
[1751961635188,1.7040686,659.94,659.76,1.459]
[1751961636288,1.7040686,659.95,659.76,1.459]
[1751961636589,1.7040686,659.94,659.76,1.459]
[1751961637093,1.7040686,659.96,659.76,1.459]
[1751961639292,1.7040686,659.97,659.76,1.459]
[1751961640892,1.7040686,659.98,659.76,1.459]
[1751961642995,1.7040686,659.99,659.76,1.459]
[1751961643497,1.7040686,660.02,659.76,1.459]
[1751961643797,1.7048886,660.02,659.76,1.459]
[1751961644094,1.7048886,660.03,659.76,1.459]
[1751961648002,1.7048886,660.02,659.76,1.459]
[1751961648202,1.7048886,660.03,659.76,1.459]
[1751961649504,1.7048886,660.03,659.41,1.7033543]
[1751961650304,1.7048886,659.97,659.48,1.7033543]
[1751961650504,1.7048886,659.98,659.48,1.7033543]
[1751961651408,1.7048886,659.97,659.49,1.7033543]
[1751961652104,2.2617348,660.12,659.52,1.7033543]
[1751961652105,1.7048886,659.95,659.52,1.7033543]
[1751961652803,1.7048886,659.96,659.5,1.7033543]
[1751961654103,1.7048886,659.96,659.51,1.7033543]
[1751961654604,1.7048886,659.96,659.5,1.7033543]
[1751961658010,1.7048886,659.95,659.53,1.7033543]
[1751961658611,1.7048886,659.94,659.53,1.7033543]
[1751961659312,1.7048886,659.94,659.54,1.7033543]
[1751961662812,1.7048886,659.92,659.57,1.7033543]
[1751961666910,1.7048886,659.95,659.52,1.7033543]
[1751961668314,1.7048886,659.96,659.52,1.7033543]
[1751961668716,1.7048886,659.97,659.49,3.4433543]
[1751961670620,1.7048886,659.98,659.49,1.74]
[1751961670819,1.7048886,659.98,659.49,3.4433543]
[1751961676622,1.7048886,659.97,659.51,1.7033543]
[1751961676826,1.7048886,659.97,659.5,1.7033543]
[1751961677126,1.7048886,659.97,659.51,1.7033543]
[1751961678625,1.7048886,659.95,659.54,1.7033543]
[1751961679823,1.7048886,659.97,659.51,1.7033543]
[1751961680223,1.7048886,659.98,659.5,1.7033543]
[1751961680427,2.52438027,660.1,659.51,1.7033543]
[1751961680428,1.7048886,659.97,659.51,1.7033543]
[1751961684829,1.7048886,659.98,659.49,3.4433543]
[1751961685531,0.26372827,660.1,659.49,1.74]
[1751961685532,1.7048886,659.99,659.49,1.74]
[1751961688333,1.7048886,659.98,659.49,1.74]
[1751961689635,1.7048886,659.98,659.49,3.4433543]
[1751961689836,1.7048886,659.99,659.49,1.74]
[1751961690334,1.7048886,659.98,659.49,1.74]
[1751961690734,1.7048886,659.99,659.49,1.74]
[1751961693536,1.7048886,660.0,659.49,1.74]
[1751961695337,1.7048886,659.99,659.49,1.74]
[1751961699538,1.7048886,659.98,659.49,1.74]
[1751961700335,1.7048886,659.98,659.49,3.4433543]
[1751961700537,1.7048886,659.97,659.49,3.4433543]
[1751961701141,1.7048886,659.97,659.49,1.7033543]
[1751961701341,1.7048886,659.97,659.5,1.7033543]
[1751961703141,1.7048886,659.96,659.51,1.7033543]
[1751961703842,1.7048886,659.96,659.52,1.7033543]
[1751961704440,1.7048886,659.95,659.53,1.7033543]
[1751961704645,1.7048886,659.95,659.53,3.5153543]
[1751961704942,1.7048886,659.94,659.54,1.7033543]
[1751961705344,1.7048886,659.96,659.53,1.812]
[1751961707044,1.7048886,660.01,659.53,1.812]
[1751961707648,1.7048886,660.03,659.53,1.812]
[1751961707848,1.7048886,660.1,659.53,1.812]
[1751961708345,1.7048886,660.05,659.53,1.812]
[1751961708749,1.7048886,660.11,659.53,1.812]
[1751961708946,1.7048886,660.12,659.53,1.812]
[1751961709351,1.7048886,660.14,659.53,1.812]
[1751961710051,1.7048886,660.15,659.53,1.812]
[1751961711251,1.7048886,660.16,659.53,1.812]
[1751961714457,1.7048886,660.17,659.53,1.812]
[1751961714853,1.7048886,660.16,659.53,1.812]
[1751961716156,1.7048886,660.15,659.53,1.812]
[1751961716355,1.7048886,660.16,659.53,1.812]
[1751961718763,1.7048886,660.15,659.53,1.812]
[1751961719159,1.7048886,660.14,659.53,1.812]
[1751961721164,1.7048886,660.13,659.53,1.812]
[1751961721564,1.7048886,660.14,659.53,1.812]
[1751961723667,1.7048886,660.11,659.55,1.7033543]
[1751961724765,1.7048886,660.11,659.56,1.7033543]
[1751961725465,1.7048886,660.1,659.57,1.7033543]
[1751961726065,1.7048886,660.09,659.57,1.7033543]
[1751961726362,1.7048886,660.1,659.57,1.7033543]
[1751961727963,1.7048886,660.09,659.57,1.7033543]
[1751961728161,1.7048886,660.09,659.58,1.7033543]
[1751961728365,0.26369929,660.21,659.53,1.812]
[1751961728366,1.7048886,660.12,659.54,1.7033543]
[1751961728566,1.7048886,660.1,659.56,1.7033543]
[1751961729367,1.7048886,660.12,659.54,1.7033543]
[1751961733972,1.7048886,660.14,659.53,1.812]
[1751961734670,1.7048886,660.15,659.53,1.812]
[1751961739285,1.7048886,660.16,659.53,3.5153543]
[1751961739784,0.26369929,660.21,659.53,1.812]
[1751961739785,1.7048886,660.17,659.53,1.812]
[1751961741279,1.7048886,660.16,659.53,1.812]
[1751961741481,1.7048886,660.16,659.54,1.7033543]
[1751961743385,0.26369929,660.21,659.47,0.26372827]
[1751961743386,1.7048886,660.15,659.55,1.7033543]
[1751961744585,1.7048886,660.15,659.56,1.7033543]
[1751961745281,1.7048886,660.14,659.56,1.7033543]
[1751961745686,1.7048886,660.14,659.57,1.758]
[1751961747485,1.7048886,660.13,659.57,3.4613543]
[1751961749188,1.7048886,660.13,659.58,1.7033543]
[1751961749690,1.7048886,660.1,659.62,1.7033543]
[1751961750188,1.7048886,660.09,659.62,1.7033543]
[1751961750487,1.7048886,660.1,659.62,1.7033543]
[1751961750886,1.7048886,660.13,659.57,3.4613543]
[1751961752289,1.7048886,660.12,659.57,3.4613543]
[1751961752590,1.7048886,660.12,659.58,1.7033543]
[1751961753290,1.7048886,660.12,659.57,3.4613543]
[1751961754290,1.7048886,660.12,659.58,1.7033543]
[1751961756989,1.7048886,660.13,659.57,1.758]
[1751961757189,1.7048886,660.17,659.6,1.7033543]
[1751961757493,1.7048886,660.16,659.6,1.7033543]
[1751961760994,1.7048886,660.15,659.62,1.7033543]
[1751961763000,1.7048886,660.14,659.63,1.7033543]
[1751961763400,1.7048886,660.13,659.64,1.7033543]
[1751961765302,1.7048886,660.13,659.65,1.7033543]
[1751961766202,1.7048886,660.12,659.65,1.7033543]
[1751961766605,1.7048886,660.12,659.66,1.7033543]
[1751961766799,1.7048886,660.14,659.63,1.7033543]
[1751961767002,1.7048886,660.13,659.64,1.7033543]
[1751961767401,1.7048886,660.13,659.65,1.7033543]
[1751961767598,1.7048886,660.12,659.65,1.7033543]
[1751961767803,1.7048886,660.12,659.66,1.193]
[1751961768004,1.7048886,660.14,659.66,1.193]
[1751961768400,1.7048886,660.15,659.66,1.193]
[1751961772804,0.26366732,660.29,659.66,1.193]
[1751961772805,1.7048886,660.16,659.66,1.193]
[1751961775308,1.7048886,660.17,659.66,1.193]
[1751961776809,1.7048886,660.16,659.66,1.193]
[1751961777010,1.702855,660.17,659.66,1.193]
[1751961777708,1.702855,660.21,659.66,1.193]
[1751961777904,0.26366732,660.29,659.66,1.193]
[1751961777905,1.702855,660.25,659.66,1.193]
[1751961778104,1.702855,660.26,659.66,1.193]
[1751961778306,1.702855,660.27,659.66,1.193]
[1751961781012,1.702855,660.28,659.66,1.193]
[1751961782610,0.26366732,660.29,659.66,1.193]
[1751961782813,1.70189427,660.28,659.66,1.193]
[1751961783411,1.96556159,660.29,659.66,1.193]
[1751961786718,1.70189427,660.28,659.66,1.193]
[1751961787616,1.70189427,660.23,659.68,1.69925624]
[1751961787915,1.70189427,660.23,659.69,1.69925624]
[1751961790022,1.70189427,660.25,659.72,1.69925624]
[1751961790619,1.70189427,660.24,659.73,1.69925624]
[1751961791718,1.70189427,660.29,659.67,1.69925624]
[1751961793423,1.70189427,660.29,659.66,2.89225624]
[1751961796421,1.70189427,660.29,659.67,1.69925624]
[1751961798128,1.70189427,660.3,659.66,1.69925624]
[1751961800227,1.70189427,660.3,659.67,1.681]
[1751961801624,1.70189427,660.27,659.7,1.69925624]
[1751961804129,1.70189427,660.28,659.69,1.69925624]
[1751961804429,1.70189427,660.29,659.67,3.38025624]
[1751961808127,1.70189427,660.28,659.68,1.69925624]
[1751961808730,1.70189427,660.27,659.7,1.69925624]
[1751961810736,1.70189427,660.27,659.69,1.69925624]
[1751961811333,1.70189427,660.27,659.7,1.69925624]
[1751961812937,1.70189427,660.29,659.68,1.69925624]
[1751961813334,1.70189427,660.29,659.69,1.69925624]
[1751961814340,1.70189427,660.28,659.71,1.69925624]
[1751961815339,1.70189427,660.27,659.71,1.69925624]
[1751961815540,0.26362738,660.37,659.67,1.681]
[1751961815541,1.70189427,660.34,659.67,1.681]
[1751961816240,1.70189427,660.33,659.67,1.681]
[1751961816837,1.70189427,660.34,659.67,1.681]
[1751961818340,1.70189427,660.33,659.64,1.69925624]
[1751961819741,1.70189427,660.36,659.6,1.69925624]
[1751961820436,0.26362738,660.37,659.64,1.69925624]
[1751961821340,0.26362738,660.37,659.63,1.69925624]
[1751961822037,0.26362738,660.37,659.64,1.179]
[1751961822341,0.26362738,660.37,659.64,2.87825624]
[1751961822641,0.26362738,660.37,659.64,1.179]
[1751961822838,0.26362738,660.37,659.64,2.87825624]
[1751961825338,0.26362738,660.37,659.67,1.69925624]
[1751961827144,1.96552165,660.37,659.69,1.69925624]
[1751961828741,0.26362738,660.37,659.68,1.69925624]
[1751961829545,1.70189427,660.34,659.74,1.69925624]
[1751961829945,1.70189427,660.31,659.77,1.69925624]
[1751961831341,1.70189427,660.31,659.78,1.69925624]
[1751961831945,1.70189427,660.31,659.77,1.69925624]
[1751961832348,1.70189427,660.31,659.78,1.69925624]
[1751961833349,1.70189427,660.3,659.78,1.69925624]
[1751961833745,1.70189427,660.31,659.78,1.69925624]
[1751961834249,1.70189427,660.3,659.78,1.69925624]
[1751961836056,1.70189427,660.3,659.79,1.69925624]
[1751961836757,1.70189427,660.47,659.64,1.179]
[1751961837054,0.26356448,660.61,659.79,1.69925624]
[1751961837257,0.26356448,660.61,659.8,1.69925624]
[1751961837453,0.26356448,660.61,659.83,1.69925624]
[1751961837952,1.70189427,660.6,659.87,1.69925624]
[1751961838455,1.70189427,660.6,659.66,2.267436]
[1751961838456,1.96545875,660.61,659.85,1.69925624]
[1751961839153,1.70189427,660.6,659.87,1.69925624]
[1751961839453,1.70189427,660.6,659.64,1.179]
[1751961839454,1.96545875,660.61,659.86,1.69925624]
[1751961841763,0.26356448,660.61,659.85,1.69925624]
[1751961842357,0.26356448,660.61,659.84,1.69925624]
[1751961842764,0.26356448,660.61,659.85,1.69925624]
[1751961843465,0.26356448,660.61,659.84,1.69925624]
[1751961844366,0.26356448,660.61,659.86,1.69925624]
[1751961844665,0.26356448,660.61,659.64,1.179]
[1751961844666,0.26356448,660.61,659.87,1.69925624]
[1751961845066,0.26356448,660.61,659.85,1.69925624]
[1751961846563,0.26356448,660.61,659.84,1.69925624]
[1751961848570,0.26356448,660.61,659.83,1.69925624]
[1751961849870,0.26356448,660.61,659.84,1.69925624]
[1751961850565,0.26356448,660.61,659.83,1.69925624]
[1751961851567,0.26356448,660.61,659.82,1.69925624]
[1751961852874,1.96545875,660.61,659.81,1.69925624]
[1751961853477,1.70189427,660.6,659.83,1.69925624]
[1751961854377,1.96545875,660.61,659.81,1.69925624]
[1751961854974,1.70189427,660.59,659.83,1.69925624]
[1751961856778,1.70189427,660.6,659.83,1.69925624]
[1751961857876,1.70189427,660.6,659.82,1.69925624]
[1751961859484,1.70189427,660.58,659.76,1.69925624]
[1751961860684,1.70189427,660.57,659.78,1.69925624]
[1751961865091,1.70189427,660.58,659.77,1.69925624]
[1751961866590,1.70189427,660.57,659.77,1.69925624]
[1751961867589,1.70189427,660.57,659.78,1.69925624]
[1751961868987,1.70189427,660.57,659.77,1.69925624]
[1751961869190,1.70189427,660.55,659.8,1.69925624]
[1751961869387,1.70189427,660.55,659.81,1.69925624]
[1751961870491,1.70189427,660.54,659.81,1.69925624]
[1751961871287,1.70189427,660.55,659.8,1.69925624]
[1751961873387,1.70189427,660.55,659.81,1.69925624]
[1751961874486,1.70189427,660.54,659.81,1.69925624]
[1751961875090,1.70189427,660.53,659.83,1.69925624]
[1751961876493,1.70189427,660.54,659.81,1.69925624]
[1751961877193,1.70189427,660.55,659.81,1.69925624]
[1751961877491,1.70189427,660.55,659.8,1.69925624]
[1751961878392,1.70189427,660.54,659.81,1.69925624]
[1751961879493,1.70189427,660.54,659.82,1.69925624]
[1751961880493,1.70189427,660.53,659.82,1.69925624]
[1751961880796,1.69759838,660.53,659.82,1.69477051]
[1751961881198,1.69759838,660.53,659.83,1.69477051]
[1751961881492,1.69759838,660.52,659.83,1.69477051]
[1751961882598,1.69759838,660.53,659.82,1.69477051]
[1751961885401,1.69759838,660.52,659.83,1.69477051]
[1751961885700,1.69759838,660.53,659.81,1.69477051]
[1751961886396,1.69759838,660.52,659.83,1.69477051]
[1751961887202,1.69759838,660.52,659.84,1.69477051]
[1751961887403,1.69759838,660.51,659.84,1.69477051]
[1751961888501,1.69759838,660.51,659.85,1.69477051]
[1751961888700,1.69759838,660.51,659.84,1.69477051]
[1751961889405,1.69759838,660.5,659.85,1.69477051]
[1751961891206,1.69759838,660.49,659.86,1.69477051]
[1751961891506,1.69759838,660.49,659.87,1.69477051]
[1751961892407,1.69759838,660.47,659.9,1.69477051]
[1751961893509,1.69759838,660.46,659.91,1.69477051]
[1751961894408,1.69759838,660.45,659.91,1.69477051]
[1751961895608,1.69759838,660.42,659.96,1.69477051]
[1751961896112,1.69759838,660.41,659.97,1.69477051]
[1751961896309,1.69759838,660.4,659.98,1.69477051]
[1751961896812,1.69759838,660.44,659.93,1.69477051]
[1751961897409,1.69759838,660.43,659.93,1.69477051]
[1751961898614,1.69759838,660.43,659.94,1.69477051]
[1751961900414,1.69759838,660.42,659.94,1.69477051]
[1751961901213,1.69759838,660.42,659.95,1.69477051]
[1751961903517,1.69759838,660.43,659.94,1.69477051]
[1751961904314,1.69759838,660.43,659.93,1.69477051]
[1751961905317,1.69759838,660.43,659.94,1.69477051]
[1751961906622,1.69759838,660.4,659.97,1.69477051]
[1751961907222,1.69759838,660.4,659.98,1.703]
[1751961908517,1.69759838,660.4,659.98,3.39777051]
[1751961909325,1.69759838,660.4,659.98,1.703]
[1751961909523,1.69759838,660.4,659.98,3.39777051]
[1751961910425,1.69759838,660.39,659.98,3.39777051]
[1751961910626,1.69759838,660.38,660.0,1.69477051]
[1751961911122,1.69759838,660.44,659.98,1.703]
[1751961911320,1.69759838,660.45,659.98,1.703]
[1751961911524,1.69759838,660.44,659.98,1.703]
[1751961912025,1.69759838,660.41,659.98,1.703]
[1751961916625,1.69759838,660.35,659.98,1.703]
[1751961917126,1.69759838,660.3,659.98,1.703]